bitfinex/quotes_BTCUSD_20251001
["timestamp","ask_amount","ask_price","bid_price","bid_amount"]
[1759324520342,0.17155601,116580.0,116570.0,1.311954]
[1759324521357,0.17155601,116580.0,116570.0,1.222754]
[1759324521570,0.17155601,116580.0,116570.0,0.260594]
[1759324521924,0.17155601,116580.0,116570.0,1.311874]
[1759324522650,0.17155601,116580.0,116570.0,1.311834]
[1759324522848,0.17155601,116580.0,116570.0,0.260594]
[1759324523084,0.17155601,116580.0,116570.0,1.05106327]
[1759324523085,0.17355601,116580.0,116570.0,1.05106327]
[1759324523302,0.17677601,116580.0,116570.0,0.38744327]
[1759324523521,0.17677601,116580.0,116570.0,1.43868327]
[1759324524161,0.17677601,116580.0,116570.0,0.559014]
[1759324524389,0.17677601,116580.0,116570.0,1.610214]
[1759324525014,0.17677601,116580.0,116570.0,0.559014]
[1759324525212,0.17677601,116580.0,116570.0,1.610174]
[1759324525447,0.17677601,116580.0,116570.0,1.611754]
[1759324526995,0.17677601,116580.0,116570.0,1.165554]
[1759324527218,0.17677601,116580.0,116570.0,1.611594]
[1759324527426,0.17677601,116580.0,116570.0,1.610014]
[1759324527872,0.17677601,116580.0,116570.0,0.38744327]
[1759324528087,0.17677601,116580.0,116570.0,1.43844327]
[1759324528300,0.17677601,116580.0,116570.0,0.38744327]
[1759324528734,0.17677601,116580.0,116570.0,1.43840327]
[1759324528946,0.17677601,116580.0,116570.0,0.99232327]
[1759324529160,0.17677601,116580.0,116570.0,1.43836327]
[1759324529610,0.17677601,116580.0,116570.0,1.37667221]
[1759324529835,0.17677601,116580.0,116570.0,1.28747221]
[1759324530061,0.17677601,116580.0,116570.0,1.37663221]
[1759324530739,0.17677601,116580.0,116570.0,1.54820294]
[1759324531884,0.17677601,116580.0,116570.0,1.54978294]
[1759324532080,0.17355601,116580.0,116570.0,1.54978294]
[1759324533635,0.17355601,116580.0,116570.0,1.611474]
[1759324534323,0.17677601,116580.0,116570.0,1.609894]
[1759324534558,0.17677601,116580.0,116570.0,0.32575221]
[1759324534780,0.17677601,116580.0,116570.0,1.26148]
[1759324535019,0.17677601,116580.0,116570.0,1.35068]
[1759324536022,0.17677601,116580.0,116570.0,0.3]
[1759324536246,0.17677601,116580.0,116570.0,1.35068]
[1759324538751,0.17677601,116580.0,116570.0,0.3]
[1759324538983,0.17677601,116580.0,116570.0,1.35068]
[1759324541136,0.17677601,116580.0,116570.0,1.26148]
[1759324541339,0.17677601,116580.0,116570.0,1.35068]
[1759324545945,0.17677601,116580.0,116570.0,0.3]
[1759324546160,0.17677601,116580.0,116570.0,1.35068]
[1759324546717,0.17677601,116580.0,116570.0,1.52225073]
[1759324546914,0.17677601,116580.0,116570.0,1.35068]
[1759324547887,0.17677601,116580.0,116570.0,1.35226]
[1759324548516,0.17677601,116580.0,116570.0,1.52383073]
[1759324549197,0.17355601,116580.0,116570.0,1.52383073]
[1759324551674,0.17649601,116580.0,116570.0,1.52383073]
[1759324555244,0.17355601,116580.0,116570.0,1.52383073]
[1759324556007,0.17649601,116580.0,116570.0,1.52383073]
[1759324556413,0.17649601,116580.0,116570.0,1.58552179]
[1759324557655,0.17649601,116580.0,116570.0,1.58394179]
[1759324558293,0.17155601,116580.0,116570.0,1.58552179]
[1759324558798,0.17369601,116580.0,116570.0,1.58552179]
[1759324559853,0.17155601,116580.0,116570.0,1.58552179]
[1759324560503,0.20587567,116590.0,116580.0,0.17155601]
[1759324560709,0.18012346,116590.0,116580.0,0.42093601]
[1759324562497,0.65136949,116600.0,116580.0,0.42093601]
[1759324562690,0.17977832,116600.0,116590.0,0.18869541]
[1759324562915,0.17977832,116600.0,116590.0,0.19027541]
[1759324563133,0.17977832,116600.0,116590.0,0.01873412]
[1759324563876,0.17977832,116600.0,116590.0,0.04448299]
[1759324564283,0.17977832,116600.0,116590.0,1.09516299]
[1759324564503,0.17977832,116600.0,116590.0,1.07800887]
[1759324566045,0.18191832,116600.0,116590.0,0.02732887]
[1759324566255,0.18485832,116600.0,116590.0,0.63192887]
[1759324566464,0.18485832,116600.0,116590.0,1.07796887]
[1759324567105,0.18485832,116600.0,116590.0,0.98876887]
[1759324567320,0.18485832,116600.0,116590.0,0.98718887]
[1759324567530,0.18485832,116600.0,116590.0,0.02574887]
[1759324567786,0.18485832,116600.0,116590.0,1.05064]
[1759324567994,0.17154129,116590.0,116580.0,0.02574887]
[1759324568200,0.17448129,116590.0,116580.0,9.07638887]
[1759324568408,0.17662129,116590.0,116580.0,1.07638887]
[1759324569045,0.17662129,116590.0,116580.0,0.63034887]
[1759324569258,0.17662129,116590.0,116580.0,1.07638887]
[1759324570103,0.17662129,116590.0,116580.0,0.63030887]
[1759324570310,0.17662129,116590.0,116580.0,1.07630887]
[1759324573115,0.17154129,116590.0,116580.0,1.24944488]
[1759324573481,0.17154129,116590.0,116580.0,9.25043488]
[1759324577553,0.43404129,116590.0,116580.0,9.25043488]
[1759324577849,0.43404129,116590.0,116580.0,9.25037363]
[1759324580858,0.43404129,116590.0,116580.0,9.24938363]
[1759324582794,0.43404129,116590.0,116580.0,9.25037363]
[1759324586009,0.2625,116590.0,116580.0,9.25037363]
[1759324586211,0.2625,116590.0,116580.0,9.31206469]
[1759324589277,0.43404129,116590.0,116580.0,9.31206469]
[1759324590410,0.43404129,116590.0,116580.0,8.26150469]
[1759324590548,0.43404129,116590.0,116580.0,9.31198469]
[1759324590750,0.2625,116590.0,116580.0,9.31198469]
[1759324593915,0.2625,116590.0,116580.0,9.61099469]
[1759324594415,0.2625,116590.0,116580.0,9.61198469]
[1759324595504,0.2625,116590.0,116580.0,9.61099469]
[1759324596636,0.2625,116590.0,116580.0,8.56051469]
[1759324596849,0.2625,116590.0,116580.0,9.61095469]
[1759324597051,0.2625,116590.0,116580.0,9.52175469]
[1759324597295,0.2625,116590.0,116580.0,9.61095469]
[1759324598505,0.2625,116590.0,116580.0,9.61194469]
[1759324599400,0.2625,116590.0,116580.0,9.52175469]
[1759324599609,0.18294832,116600.0,116580.0,9.52171469]
[1759324599815,0.18294832,116600.0,116590.0,8.2476]
[1759324600012,0.18294832,116600.0,116590.0,0.41914129]
[1759324600154,0.18510832,116600.0,116590.0,0.41914129]
[1759324600361,0.18510832,116600.0,116590.0,0.44488965]
[1759324603236,0.18510832,116600.0,116590.0,0.02574836]
[1759324603469,0.18510832,116600.0,116590.0,1.07614836]
[1759324603671,0.18510832,116600.0,116590.0,1.24768965]
[1759324603872,0.18510832,116600.0,116590.0,1.07614836]
[1759324605518,0.18510832,116600.0,116590.0,1.24768965]
[1759324606309,0.18510832,116600.0,116590.0,1.07614836]
[1759324606546,0.18510832,116600.0,116590.0,0.02574836]
[1759324606953,0.18510832,116600.0,116590.0,1.07610836]
[1759324608152,0.18510832,116600.0,116590.0,0.02574836]
[1759324608327,0.18510832,116600.0,116590.0,0.38254836]
[1759324608528,0.18510832,116600.0,116590.0,1.07610836]
[1759324608702,0.18510832,116600.0,116590.0,1.05036]
[1759324610070,0.17154129,116590.0,116580.0,0.36169106]
[1759324610376,0.17667129,116590.0,116580.0,9.35036]
[1759324610578,0.17667129,116590.0,116580.0,8.3]
[1759324610941,0.17667129,116590.0,116580.0,9.35036]
[1759324612171,0.17667129,116590.0,116580.0,9.26112]
[1759324612396,0.17667129,116590.0,116580.0,9.35032]
[1759324615174,0.17667129,116590.0,116580.0,8.3]
[1759324615374,0.17667129,116590.0,116580.0,9.35032]
[1759324616199,0.17667129,116590.0,116580.0,8.3]
[1759324616401,0.17667129,116590.0,116580.0,9.35032]
[1759324619319,0.43917129,116590.0,116580.0,9.35032]
[1759324622839,0.43620129,116590.0,116580.0,9.3519]
[1759324623036,0.43620129,116590.0,116580.0,1.3519]
[1759324623441,0.43620129,116590.0,116580.0,1.35210337]
[1759324623655,0.43917129,116590.0,116580.0,1.35052337]
[1759324623847,0.52855676,116590.0,116580.0,0.30020337]
[1759324624076,0.52855676,116590.0,116580.0,0.99368337]
[1759324629011,0.52855676,116590.0,116580.0,0.99526337]
[1759324629297,0.52342676,116590.0,116580.0,0.99526337]
[1759324629654,0.52545676,116590.0,116580.0,0.99526337]
[1759324629858,0.52842676,116590.0,116580.0,0.99526337]
[1759324631630,0.52842676,116590.0,116580.0,0.99368337]
[1759324634078,0.26592676,116590.0,116580.0,0.99368337]
[1759324634713,0.26092676,116590.0,116580.0,0.99526337]
[1759324634918,0.26092676,116590.0,116580.0,0.99625337]
[1759324635136,0.17154129,116590.0,116580.0,0.99625337]
[1759324635313,0.17154129,116590.0,116580.0,1.16780938]
[1759324635522,0.17154129,116590.0,116580.0,0.99625337]
[1759324636272,0.17154129,116590.0,116580.0,1.16780938]
[1759324637008,0.17154129,116590.0,116580.0,0.99625337]
[1759324638345,0.17154129,116590.0,116580.0,0.90598337]
[1759324638554,0.17154129,116590.0,116580.0,1.35202337]
[1759324642793,0.17154129,116590.0,116580.0,1.52456938]
[1759324642974,0.17154129,116590.0,116580.0,1.41470443]
[1759324643650,0.17154129,116590.0,116580.0,1.58626044]
[1759324645018,0.17154129,116590.0,116580.0,1.52456938]
[1759324649367,0.171202,116600.0,116590.0,0.17154129]
[1759324649588,0.1835775,116610.0,116600.0,0.51152658]
[1759324649589,0.00034004,116610.0,116600.0,0.51152658]
[1759324649795,0.00034004,116610.0,116600.0,8.51310658]
[1759324649996,0.17185191,116610.0,116600.0,9.30353]
[1759324650203,0.17185191,116610.0,116600.0,8.57578764]
[1759324650389,0.00034004,116610.0,116600.0,9.62594764]
[1759324650769,0.00038667,116610.0,116600.0,9.65169043]
[1759324650973,0.00038667,116610.0,116600.0,9.58994162]
[1759324651299,0.00038667,116610.0,116600.0,8.62898162]
[1759324651459,0.00038667,116610.0,116600.0,9.67906162]
[1759324653760,0.00038667,116610.0,116600.0,8.62898162]
[1759324653943,0.17189789,116620.0,116610.0,0.1736252]
[1759324654150,0.17189789,116620.0,116610.0,9.15319638]
[1759324654354,0.17189789,116620.0,116610.0,9.2262352]
[1759324654552,0.17189789,116620.0,116610.0,8.1761952]
[1759324654783,0.0004,116620.0,116610.0,9.25368639]
[1759324655673,0.0004,116620.0,116610.0,8.80764639]
[1759324655878,0.0004,116620.0,116610.0,9.25356639]
[1759324656603,0.0004,116620.0,116610.0,9.16459203]
[1759324656883,0.0004,116620.0,116610.0,9.25375203]
[1759324657767,0.0004,116620.0,116610.0,8.20383203]
[1759324657981,0.0004,116620.0,116610.0,9.25371203]
[1759324659001,0.0004,116620.0,116610.0,8.20383203]
[1759324659240,0.0004,116620.0,116610.0,9.59371203]
[1759324659525,0.0004,116620.0,116610.0,9.61945266]
[1759324661015,0.0004,116620.0,116610.0,8.56957266]
[1759324661747,0.0004,116620.0,116610.0,8.54212147]
[1759324662997,0.17189717,116620.0,116610.0,9.59188147]
[1759324663234,0.0004,116620.0,116610.0,9.59188147]
[1759324663738,0.0004,116620.0,116610.0,9.59089147]
[1759324664078,0.17189717,116620.0,116610.0,9.59089147]
[1759324664505,0.0004,116620.0,116610.0,9.59188147]
[1759324668072,0.0004,116620.0,116610.0,9.59153434]
[1759324668863,0.0004,116620.0,116610.0,9.56579371]
[1759324679225,0.00842349,116620.0,116610.0,9.56579371]
[1759324679476,0.00842349,116620.0,116610.0,9.62748477]
[1759324680087,0.0004,116620.0,116610.0,9.62748477]
[1759324681295,0.0004,116620.0,116610.0,9.6540851]
[1759324684277,0.0004,116620.0,116610.0,9.59239404]
[1759324685009,0.0004,116620.0,116610.0,9.65405392]
[1759324686905,0.0004,116620.0,116610.0,9.59239404]
[1759324691652,0.0004,116620.0,116610.0,8.54164404]
[1759324691857,0.00567,116620.0,116610.0,9.56306371]
[1759324692085,0.00567,116620.0,116610.0,8.51346371]
[1759324692321,0.0004,116620.0,116610.0,9.56464371]
[1759324692543,0.0004,116620.0,116610.0,8.51504371]
[1759324692830,0.0004,116620.0,116610.0,9.56563371]
[1759324694803,0.0004,116620.0,116610.0,9.56464371]
[1759324695399,0.0004,116620.0,116610.0,9.56563371]
[1759324695931,0.0004,116620.0,116610.0,9.56464371]
[1759324696370,0.0004,116620.0,116610.0,9.56563371]
[1759324696792,0.0004,116620.0,116610.0,9.62730615]
[1759324698218,0.0004,116620.0,116610.0,9.62631615]
[1759324698477,0.0004,116620.0,116610.0,9.56464371]
[1759324698683,0.0004,116620.0,116610.0,9.56563371]
[1759324699379,0.0004,116620.0,116610.0,9.6273074]
[1759324700375,0.0004,116620.0,116610.0,9.56563371]
[1759324701783,0.0004,116620.0,116610.0,9.56464371]
[1759324703031,0.0004,116620.0,116610.0,9.56563371]
[1759324705929,0.0004,116620.0,116610.0,9.56464371]
[1759324706838,0.0004,116620.0,116610.0,9.56563371]
[1759324707946,0.0004,116620.0,116610.0,9.56464371]
[1759324708469,0.0004,116620.0,116610.0,9.56563371]
[1759324710495,0.0004,116620.0,116610.0,9.64163193]
[1759324710705,0.0004,116620.0,116610.0,9.66922226]
[1759324715640,0.0004,116620.0,116610.0,9.75860773]
[1759324716063,0.0004,116620.0,116610.0,8.73474615]
[1759324716267,0.0004,116620.0,116610.0,9.69514615]
[1759324716405,0.0004,116620.0,116610.0,9.78430615]
[1759324716985,0.0004,116620.0,116610.0,8.73474615]
[1759324717182,0.0004,116620.0,116610.0,9.78430615]
[1759324719434,0.17182925,116640.0,116630.0,0.17148246]
[1759324719630,0.00040747,116640.0,116630.0,0.42010246]
[1759324721883,0.17187523,116640.0,116630.0,1.22262246]
[1759324722087,0.00040747,116640.0,116630.0,1.22262246]
[1759324722926,0.00040747,116640.0,116630.0,1.28429791]
[1759324724053,0.00040747,116640.0,116630.0,9.65176949]
[1759324724858,0.00040747,116640.0,116630.0,9.62528791]
[1759324727258,0.00040747,116640.0,116630.0,8.58509616]
[1759324727464,0.00040747,116640.0,116630.0,9.63461616]
[1759324728822,0.00040747,116640.0,116630.0,9.72400163]
[1759324729021,0.00040747,116640.0,116630.0,9.87943966]
[1759324729159,0.00040747,116640.0,116630.0,9.98216038]
[1759324731282,0.00040747,116640.0,116630.0,8.9051688]
[1759324731475,0.00040747,116640.0,116630.0,9.87762058]
[1759324731677,0.00040747,116640.0,116630.0,9.87861058]
[1759324732563,0.00040747,116640.0,116630.0,8.82917058]
[1759324732767,0.00040747,116640.0,116630.0,9.87861058]
[1759324734978,0.00040747,116640.0,116630.0,9.9555988]
[1759324735383,0.00040747,116640.0,116630.0,8.9061588]
[1759324735590,0.00040747,116640.0,116630.0,8.82917058]
[1759324735806,0.00040747,116640.0,116630.0,9.87857058]
[1759324736613,0.00040747,116640.0,116630.0,8.82917058]
[1759324736832,0.00532747,116640.0,116630.0,9.87758058]
[1759324737017,0.00040747,116640.0,116630.0,9.87758058]
[1759324737338,0.00040747,116640.0,116630.0,8.82818058]
[1759324737550,0.00040747,116640.0,116630.0,9.87758058]
[1759324737779,0.00040747,116640.0,116630.0,9.87857058]
[1759324743539,0.00040747,116640.0,116630.0,9.9555588]
[1759324747993,0.00040747,116640.0,116630.0,10.2992988]
[1759324752601,0.00040747,116640.0,116630.0,10.2983088]
[1759324752827,0.00040747,116640.0,116630.0,10.2992988]
[1759324756210,0.00040747,116640.0,116630.0,9.12937143]
[1759324756434,0.17483523,116640.0,116630.0,9.14439143]
[1759324756656,0.17483523,116640.0,116630.0,8.93181125]
[1759324756657,0.17679523,116640.0,116630.0,8.93181125]
[1759324756861,0.17679523,116640.0,116630.0,9.79593371]
[1759324757071,0.17679523,116640.0,116630.0,9.62445125]
[1759324757222,0.17679523,116640.0,116630.0,9.56282825]
[1759324757806,0.17685648,116640.0,116630.0,8.51358825]
[1759324758016,0.17685648,116640.0,116630.0,9.56282825]
[1759324758226,0.17685648,116640.0,116630.0,8.51358825]
[1759324758399,0.17685648,116640.0,116630.0,9.56282825]
[1759324762358,0.17389648,116640.0,116630.0,9.73431071]
[1759324762771,0.17693648,116640.0,116630.0,9.73431071]
[1759324762959,0.00046872,116640.0,116630.0,10.10237229]
[1759324763107,0.00046872,116640.0,116630.0,10.16498529]
[1759324763512,0.00046872,116640.0,116630.0,10.25437076]
[1759324764555,0.00046872,116640.0,116630.0,10.22289966]
[1759324765424,0.00046872,116640.0,116630.0,10.13377966]
[1759324765618,0.00046872,116640.0,116630.0,10.22289966]
[1759324766363,0.00046872,116640.0,116630.0,10.29988788]
[1759324767544,0.00046872,116640.0,116630.0,10.30331892]
[1759324770283,0.00046872,116640.0,116630.0,9.25407892]
[1759324770859,0.00046872,116640.0,116630.0,10.27683734]
[1759324771682,0.00046872,116640.0,116630.0,9.22759734]
[1759324771906,0.00046872,116640.0,116630.0,10.27683734]
[1759324773372,0.00046872,116640.0,116630.0,10.18767734]
[1759324773518,0.00046872,116640.0,116630.0,10.27679734]
[1759324774634,0.00046872,116640.0,116630.0,9.22759734]
[1759324774846,0.00046872,116640.0,116630.0,10.27679734]
[1759324775895,0.00046872,116640.0,116630.0,9.22759734]
[1759324776097,0.00046872,116640.0,116630.0,10.27679734]
[1759324777825,0.00046872,116640.0,116630.0,9.22759734]
[1759324778066,0.00046872,116640.0,116630.0,10.27679734]
[1759324778386,0.00046872,116640.0,116630.0,9.22759734]
[1759324778581,0.00046872,116640.0,116630.0,10.27679734]
[1759324778780,0.00046872,116640.0,116630.0,9.22759734]
[1759324779043,0.00046872,116640.0,116630.0,10.27679734]
[1759324780446,0.00046872,116640.0,116630.0,9.22759734]
[1759324780673,0.00046872,116640.0,116630.0,9.22660734]
[1759324780674,0.00242872,116640.0,116630.0,9.22660734]
[1759324780882,0.17693648,116640.0,116630.0,8.57852595]
[1759324781091,0.17693648,116640.0,116630.0,9.73770175]
[1759324781264,0.17693648,116640.0,116630.0,8.51701929]
[1759324781403,0.17693648,116640.0,116630.0,9.90621929]
[1759324781812,0.17693648,116640.0,116630.0,9.90278825]
[1759324785791,0.17693648,116640.0,116630.0,8.51358825]
[1759324785997,0.17693648,116640.0,116630.0,9.56278825]
[1759324791043,0.17693648,116640.0,116630.0,9.58926983]
[1759324794629,0.43943648,116640.0,116630.0,9.58926983]
[1759324795835,0.43943648,116640.0,116630.0,9.58922683]
[1759324796040,0.43943648,116640.0,116630.0,9.58934683]
[1759324798145,0.43943648,116640.0,116630.0,9.76082929]
[1759324799480,0.43943648,116640.0,116630.0,9.76240929]
[1759324799615,0.43639648,116640.0,116630.0,9.76240929]
[1759324800352,0.43443648,116640.0,116630.0,9.76240929]
[1759324801059,0.26296872,116640.0,116630.0,10.10339929]
[1759324801473,0.26296872,116640.0,116630.0,10.16490595]
[1759324801893,0.26296872,116640.0,116630.0,9.11558595]
[1759324802100,0.26296872,116640.0,116630.0,10.16490595]
[1759324804979,0.26296872,116640.0,116630.0,9.11558595]
[1759324805101,0.26296872,116640.0,116630.0,9.71910595]
[1759324805297,0.26296872,116640.0,116630.0,10.16490595]
[1759324806944,0.26296872,116640.0,116630.0,9.11558595]
[1759324807094,0.26296872,116640.0,116630.0,10.16490595]
[1759324807305,0.26296872,116640.0,116630.0,9.11558595]
[1759324807489,0.26296872,116640.0,116630.0,10.16490595]
[1759324807714,0.26296872,116640.0,116630.0,10.16391595]
[1759324808695,0.26296872,116640.0,116630.0,10.16490595]
[1759324809076,0.26296872,116640.0,116630.0,10.07570595]
[1759324809300,0.26296872,116640.0,116630.0,10.16486595]
[1759324810054,0.26296872,116640.0,116630.0,10.16387595]
[1759324811968,0.26296872,116640.0,116630.0,10.16486595]
[1759324817136,0.26296872,116640.0,116630.0,10.13838437]
[1759324820104,0.26290747,116640.0,116630.0,10.07687771]
[1759324820306,0.26290747,116640.0,116630.0,10.16626318]
[1759324820529,0.26290747,116640.0,116630.0,10.19274476]
[1759324821037,0.26290747,116640.0,116630.0,10.26973298]
[1759324821624,0.26290747,116640.0,116630.0,9.22045298]
[1759324821788,0.26290747,116640.0,116630.0,10.26973298]
[1759324822938,0.26290747,116640.0,116630.0,9.22045298]
[1759324823158,0.26290747,116640.0,116630.0,10.26969298]
[1759324824121,0.00040747,116640.0,116630.0,10.26969298]
[1759324824852,0.00040747,116640.0,116630.0,10.18053298]
[1759324825058,0.00040747,116640.0,116630.0,10.26969298]
[1759324825510,0.00040747,116640.0,116630.0,9.22045298]
[1759324825715,0.00040747,116640.0,116630.0,10.26957298]
[1759324825897,0.00040747,116640.0,116630.0,9.82385298]
[1759324826097,0.00040747,116640.0,116630.0,10.26957298]
[1759324826299,0.00040747,116640.0,116630.0,10.18045298]
[1759324826636,0.00040747,116640.0,116630.0,9.22045298]
[1759324826870,0.00040747,116640.0,116630.0,9.21946298]
[1759324827292,0.00040747,116640.0,116630.0,10.2421014]
[1759324827430,0.00040747,116640.0,116630.0,10.16511318]
[1759324828046,0.00040747,116640.0,116630.0,10.2421014]
[1759324829033,0.00040747,116640.0,116630.0,9.1929814]
[1759324829200,0.00040747,116640.0,116630.0,10.2421014]
[1759324829439,0.00040747,116640.0,116630.0,10.2430914]
[1759324829627,0.00040747,116640.0,116630.0,9.1939714]
[1759324829791,0.00040747,116640.0,116630.0,10.2430914]
[1759324830376,0.00040747,116640.0,116630.0,10.2421014]
[1759324830938,0.00040747,116640.0,116630.0,10.2430914]
[1759324831136,0.00040747,116640.0,116630.0,10.24274428]
[1759324836787,0.00040747,116640.0,116630.0,10.24175428]
[1759324837174,0.00040747,116640.0,116630.0,10.24274428]
[1759324838153,0.00040747,116640.0,116630.0,10.24175428]
[1759324838346,0.00040747,116640.0,116630.0,10.15259428]
[1759324838575,0.00040747,116640.0,116630.0,10.24171428]
[1759324839051,0.00040747,116640.0,116630.0,10.24270428]
[1759324839420,0.00040747,116640.0,116630.0,9.4438151]
[1759324839644,0.00040747,116640.0,116630.0,10.2461351]
[1759324845169,0.00040747,116640.0,116630.0,10.2460951]
[1759324845375,0.00040747,116640.0,116630.0,10.3364051]
[1759324845603,0.00040747,116640.0,116630.0,10.2460951]
[1759324845832,0.00040747,116640.0,116630.0,9.1970551]
[1759324846244,0.00040747,116640.0,116630.0,10.2460951]
[1759324846890,0.00040747,116640.0,116630.0,9.1970551]
[1759324847096,0.00040747,116640.0,116630.0,10.2460951]
[1759324847771,0.00040747,116640.0,116630.0,9.1960651]
[1759324847953,0.00545747,116640.0,116630.0,9.22120618]
[1759324848162,0.00545747,116640.0,116630.0,9.99337428]
[1759324848379,0.00545747,116640.0,116630.0,10.24009428]
[1759324849186,0.00545747,116640.0,116630.0,9.19105428]
[1759324849391,0.00545747,116640.0,116630.0,10.24009428]
[1759324849775,0.00545747,116640.0,116630.0,10.26582877]
[1759324850549,0.00040747,116640.0,116630.0,10.26582877]
[1759324854318,0.00337747,116640.0,116630.0,9.21678877]
[1759324854520,0.00235747,116640.0,116630.0,10.26740877]
[1759324854889,0.00040747,116640.0,116630.0,10.26740877]
[1759324858744,0.00040747,116640.0,116630.0,10.26839877]
[1759324859870,0.00040747,116640.0,116630.0,10.21789213]
[1759324860551,4.306e-05,116640.0,116630.0,10.24804403]
[1759324860688,4.306e-05,116640.0,116630.0,10.35588238]
[1759324866209,4.306e-05,116640.0,116630.0,10.40736238]
[1759324870730,4.306e-05,116640.0,116630.0,9.35832238]
[1759324870935,4.306e-05,116640.0,116630.0,10.40724238]
[1759324871441,4.306e-05,116640.0,116630.0,10.39787413]
[1759324871840,4.306e-05,116640.0,116630.0,10.29003578]
[1759324873217,4.306e-05,116640.0,116630.0,9.24111578]
[1759324873419,4.306e-05,116640.0,116630.0,10.20087578]
[1759324873629,4.306e-05,116640.0,116630.0,10.28999578]
[1759324874805,4.306e-05,116640.0,116630.0,9.24111578]
[1759324874983,4.306e-05,116640.0,116630.0,10.28999578]
[1759324875400,4.306e-05,116640.0,116630.0,10.29882788]
[1759324875543,4.306e-05,116640.0,116630.0,10.38906788]
[1759324875762,4.306e-05,116640.0,116630.0,10.29882788]
[1759324879463,4.306e-05,116640.0,116630.0,10.26867598]
[1759324879980,4.306e-05,116640.0,116630.0,10.29882788]
[1759324882227,4.306e-05,116640.0,116630.0,9.24994788]
[1759324882427,4.306e-05,116640.0,116630.0,10.29878788]
[1759324882852,4.306e-05,116640.0,116630.0,9.24994788]
[1759324883050,4.608e-05,116650.0,116640.0,0.54161966]
[1759324883279,4.608e-05,116650.0,116640.0,9.72597627]
[1759324883591,4.608e-05,116650.0,116640.0,8.76724627]
[1759324883802,4.608e-05,116650.0,116640.0,9.81608627]
[1759324884411,4.608e-05,116650.0,116640.0,9.81972627]
[1759324886457,4.608e-05,116650.0,116640.0,9.87120627]
[1759324891685,4.76e-06,116650.0,116640.0,17.76362659]
[1759324892521,4.76e-06,116650.0,116640.0,9.07701671]
[1759324893072,4.181e-05,116660.0,116650.0,0.56293306]
[1759324893449,4.181e-05,116660.0,116650.0,9.03354689]
[1759324893601,4.181e-05,116660.0,116650.0,9.03512689]
[1759324893802,4.181e-05,116660.0,116650.0,9.06085209]
[1759324894149,8.843e-05,116660.0,116650.0,9.06085209]
[1759324894479,8.843e-05,116660.0,116650.0,9.06081209]
[1759324898370,8.843e-05,116660.0,116650.0,9.99767891]
[1759324898572,8.843e-05,116660.0,116650.0,10.08679891]
[1759324900466,8.843e-05,116660.0,116650.0,9.99763891]
[1759324900651,8.843e-05,116660.0,116650.0,10.08675891]
[1759324903108,9.1e-06,116660.0,116650.0,9.03811891]
[1759324903244,9.1e-06,116660.0,116650.0,10.08667891]
[1759324903445,9.1e-06,116660.0,116650.0,10.08568891]
[1759324903642,9.1e-06,116660.0,116650.0,10.08667891]
[1759324903855,9.1e-06,116660.0,116650.0,9.03712891]
[1759324904059,9.1e-06,116660.0,116650.0,10.08568891]
[1759324904284,9.1e-06,116660.0,116650.0,10.08667891]
[1759324904669,0.0032491,116660.0,116650.0,9.03554891]
[1759324904868,0.0052991,116660.0,116650.0,9.00939799]
[1759324905087,0.0052991,116660.0,116650.0,10.05795799]
[1759324905286,9.1e-06,116660.0,116650.0,10.05953799]
[1759324905487,9.1e-06,116660.0,116650.0,10.06052799]
[1759324906046,9.1e-06,116660.0,116650.0,10.00904799]
[1759324906403,9.1e-06,116660.0,116650.0,10.00900799]
[1759324911570,9.1e-06,116660.0,116650.0,10.00801799]
[1759324912167,9.1e-06,116660.0,116650.0,10.00900799]
[1759324912307,9.1e-06,116660.0,116650.0,10.03515891]
[1759324913049,0.00409029,116670.0,116660.0,0.54159026]
[1759324913373,0.00409029,116670.0,116660.0,8.87899573]
[1759324913374,0.00348652,116670.0,116660.0,8.87899573]
[1759324913751,0.00145652,116670.0,116660.0,8.90472172]
[1759324914677,0.00658652,116670.0,116660.0,8.87298982]
[1759324915464,0.00348652,116670.0,116660.0,8.87456982]
[1759324915676,0.00145652,116670.0,116660.0,8.87555982]
[1759324915874,0.00145652,116670.0,116660.0,8.93186264]
[1759324917415,0.00145652,116670.0,116660.0,9.03939008]
[1759324920991,0.00145652,116670.0,116660.0,9.03904296]
[1759324923154,0.00015328,116670.0,116660.0,9.03904296]
[1759324924287,0.00015328,116670.0,116660.0,9.03805296]
[1759324924690,0.00015328,116670.0,116660.0,9.03904296]
[1759324926501,0.00015328,116670.0,116660.0,8.79260296]
[1759324926709,0.00015328,116670.0,116660.0,9.84104296]
[1759324926914,0.00528328,116670.0,116660.0,9.44036467]
[1759324927126,0.00528328,116670.0,116660.0,8.63828467]
[1759324927334,0.00528328,116670.0,116660.0,9.76367431]
[1759324927529,0.00528328,116670.0,116660.0,8.60770687]
[1759324927774,0.00528328,116670.0,116660.0,9.65614687]
[1759324928310,0.00528328,116670.0,116660.0,9.57919723]
[1759324929456,0.00528328,116670.0,116660.0,9.64072953]
[1759324929973,0.00528328,116670.0,116660.0,8.59228953]
[1759324930184,0.17670695,116670.0,116660.0,9.22933829]
[1759324930429,0.17670695,116670.0,116660.0,9.47569829]
[1759324930672,0.17670695,116670.0,116660.0,0.88933829]
[1759324930857,0.17143836,116660.0,116650.0,0.2219323]
[1759324931092,0.17656836,116660.0,116650.0,9.29610569]
[1759324931298,0.17656836,116660.0,116650.0,9.57457339]
[1759324932137,0.17656836,116660.0,116650.0,0.96256]
[1759324932341,0.17656836,116660.0,116640.0,0.02573555]
[1759324932342,0.17145306,116650.0,116640.0,0.02573555]
[1759324932544,0.17658306,116650.0,116640.0,1.04848]
[1759324932749,0.17658306,116650.0,116640.0,1.38848]
[1759324933676,0.17658306,116650.0,116640.0,1.55994776]
[1759324933919,0.17658306,116650.0,116640.0,1.38848]
[1759324934955,0.17658306,116650.0,116640.0,1.38852]
[1759324939901,0.17658306,116650.0,116640.0,0.94292]
[1759324940075,0.17658306,116650.0,116640.0,1.3886]
[1759324940984,0.17658306,116650.0,116640.0,1.56006776]
[1759324941514,0.17658306,116650.0,116640.0,1.3886]
[1759324942636,0.17658306,116650.0,116640.0,0.34]
[1759324942835,0.17658306,116650.0,116640.0,1.3886]
[1759324943046,0.17658306,116650.0,116640.0,0.34]
[1759324943247,0.17658306,116650.0,116640.0,1.3886]
[1759324945747,0.17658306,116650.0,116640.0,1.14224]
[1759324945942,0.26596853,116650.0,116640.0,0.78572]
[1759324946176,0.26596853,116650.0,116640.0,1.03208]
[1759324948739,0.26346853,116650.0,116640.0,1.03208]
[1759324948935,0.26544853,116650.0,116640.0,1.03208]
[1759324950065,0.27343985,116650.0,116640.0,1.03208]
[1759324951470,0.27343985,116650.0,116640.0,0.34]
[1759324951684,0.27343985,116650.0,116640.0,1.03208]
[1759324959916,0.27343985,116650.0,116640.0,0.34]
[1759324960115,0.27343985,116650.0,116640.0,1.03216]
[1759324960529,0.17146776,116640.0,116630.0,0.3525721]
[1759324960706,0.18461908,116640.0,116630.0,1.3847321]
[1759324962066,0.27400455,116640.0,116630.0,1.3847321]
[1759324962294,0.29005287,116640.0,116630.0,1.3847321]